bitfinex/quotes_ETHUSD_20240926
["timestamp","ask_amount","ask_price","bid_price","bid_amount"]
[1727332410102,1.60418381,2619.9,2619.8,4.78407289]
[1727332410737,1.60418381,2619.9,2619.8,3.97477289]
[1727332411828,2.00527841,2620.0,2619.8,3.53176684]
[1727332412026,1.60424082,2619.9,2619.8,3.97478111]
[1727332412409,1.60424082,2619.9,2619.8,3.53176684]
[1727332413440,1.60424082,2619.9,2619.8,3.0887697]
[1727332415824,1.60427851,2619.9,2619.8,3.0887697]
[1727332417478,2.36677851,2619.9,2619.8,0.0351097]
[1727332417635,2.76787796,2619.9,2619.8,0.0351097]
[1727332418060,2.76787796,2619.9,2619.8,3.0887697]
[1727332418264,2.00537796,2619.9,2619.8,3.70302367]
[1727332418445,1.60434445,2619.9,2619.8,3.70302367]
[1727332419359,1.60434445,2619.9,2619.8,3.0887697]
[1727332422484,1.60434445,2619.9,2619.8,0.0351097]
[1727332422778,2.00546101,2619.9,2619.8,0.0351097]
[1727332423785,2.00546101,2619.9,2619.8,3.0887697]
[1727332423953,0.7818,2620.1,2619.8,3.0887697]
[1727332424288,2.00575766,2619.9,2619.8,3.0887697]
[1727332424486,2.00575766,2619.9,2619.8,0.0351097]
[1727332424785,2.83205766,2619.9,2619.8,0.0351097]
[1727332425584,2.83205766,2619.9,2619.8,3.0887697]
[1727332425990,2.83205766,2619.9,2619.8,0.0351097]
[1727332427091,3.38205766,2619.9,2619.8,0.0351097]
[1727332427380,2.26052869,2619.9,2619.8,0.0351097]
[1727332430915,1.3763,2619.9,2619.8,0.0351097]
[1727332431122,2.55521491,2619.9,2619.8,3.0887697]
[1727332432808,2.00521491,2619.9,2619.8,3.0887697]
[1727332433511,2.00521491,2620.0,2619.9,3.05355]
[1727332434031,2.00539587,2620.0,2619.9,3.05355]
[1727332434200,2.00539587,2620.0,2619.8,6.1423597]
[1727332434402,1.60435862,2619.9,2619.8,3.0886997]
[1727332435795,1.60435862,2619.9,2619.8,3.79364953]
[1727332436225,1.20323448,2619.9,2619.8,3.79364953]
[1727332436714,1.60435862,2620.0,2619.9,3.05355]
[1727332437213,2.00539587,2620.0,2619.9,3.05355]
[1727332437529,3.21937504,2620.3,2619.9,3.05355]
[1727332437530,2.00539587,2620.1,2619.9,3.05355]
[1727332438129,2.00539587,2620.0,2619.8,3.0886997]
[1727332438434,2.00539587,2620.1,2619.9,3.05355]
[1727332439594,2.00539587,2620.1,2619.8,3.0886897]
[1727332439796,1.60433955,2619.9,2619.8,3.0886897]
[1727332447273,1.60433955,2620.0,2619.9,3.05355]
[1727332447795,2.00552847,2620.1,2619.9,3.05355]
[1727332448199,1.60425445,2620.0,2619.9,3.84165]
[1727332449300,1.60427832,2620.0,2619.9,3.84165]
[1727332449511,2.00552847,2620.1,2619.9,3.84165]
[1727332449659,1.60425362,2620.0,2619.9,3.84165]
[1727332450167,2.00552847,2620.1,2619.9,0.7881]
[1727332450499,2.00552847,2620.0,2619.8,3.0887097]
[1727332450707,1.60423729,2619.9,2619.8,3.0887097]
[1727332451871,1.60423729,2620.0,2619.9,3.05355]
[1727332452069,1.60423729,2620.0,2619.8,3.0887097]
[1727332452305,1.60423729,2619.9,2619.8,3.0887097]
[1727332455832,1.60423729,2620.0,2619.8,3.0887097]
[1727332456385,1.60423729,2619.9,2619.8,3.0887097]
[1727332457126,1.60423729,2620.0,2619.8,3.0887097]
[1727332457502,1.60423729,2619.9,2619.8,3.0887097]
[1727332458425,1.20272562,2619.9,2619.8,3.0887097]
[1727332458625,1.60423729,2620.0,2619.8,3.0887097]
[1727332458925,1.20291823,2619.9,2619.8,3.0887097]
[1727332461746,1.60423729,2620.0,2619.8,0.0351097]
[1727332462068,1.60423729,2619.9,2619.8,3.0887197]
[1727332472204,2.78150411,2619.9,2619.8,0.0351097]
[1727332472485,2.78150411,2619.9,2619.8,3.0887697]
[1727332472701,2.78166492,2619.9,2619.8,3.0887697]
[1727332472991,2.78166492,2619.9,2619.8,3.53174975]
[1727332475215,0.7764,2619.9,2619.8,3.53174975]
[1727332475440,2.78166492,2619.9,2619.8,3.53174975]
[1727332475722,2.78166492,2619.9,2619.8,3.9748322]
[1727332476086,2.78166492,2619.9,2619.8,3.53185215]
[1727332476521,2.78318385,2619.9,2619.8,3.53185215]
[1727332478242,2.00678385,2619.9,2619.8,6.61533508]
[1727332478436,1.20425646,2620.6,2620.5,3.05285]
[1727332478594,1.60585889,2621.1,2620.8,0.7788]
[1727332478785,1.60585889,2621.3,2621.1,3.05215]
[1727332479021,1.60585889,2621.4,2621.2,1.60561971]
[1727332479183,1.60585889,2621.5,2621.3,5.51263068]
[1727332479387,0.8023,2621.9,2621.4,4.12242421]
[1727332479700,1.60853499,2622.1,2621.6,3.05156]
[1727332479889,50.5,2622.0,2621.6,5.69126557]
[1727332480095,50.5,2622.0,2621.6,3.05156]
[1727332480933,0.55,2621.9,2621.6,3.05156]
[1727332481389,18.90669,2621.8,2621.6,3.05156]
[1727332482402,18.90669,2621.8,2621.7,3.05145]
[1727332483098,0.0026761,2622.1,2621.7,3.05145]
[1727332483099,50.5,2622.0,2621.9,3.05122]
[1727332483288,0.0026761,2622.1,2621.9,3.05122]
[1727332483289,0.5526761,2622.1,2621.9,3.05122]
[1727332483494,50.5,2622.0,2621.9,3.05122]
[1727332485700,50.5,2622.0,2621.8,3.05132]
[1727332485906,50.5,2622.0,2621.7,3.05145]
[1727332486231,50.5,2622.0,2621.8,3.05133]
[1727332486718,50.5,2622.0,2621.7,3.05145]
[1727332486719,50.5,2622.0,2621.9,3.05122]
[1727332487124,50.5,2622.0,2621.7,3.05134]
[1727332487431,51.05,2622.0,2621.9,3.05122]
[1727332489516,0.5526761,2622.1,2622.0,3.0511]
[1727332489728,0.5526761,2622.1,2621.9,3.05122]
[1727332499003,0.5526761,2622.1,2621.7,3.05139]
[1727332499192,0.5526761,2622.1,2621.8,3.05129]
[1727332500364,0.5526761,2622.1,2621.7,6.10273]
[1727332500588,0.5526761,2622.1,2621.8,3.05127]
[1727332501063,0.5526761,2622.1,2621.7,3.05134]
[1727332501263,0.5526761,2622.1,2621.9,3.0512]
[1727332503209,0.5526761,2622.1,2621.9,6.10234]
[1727332503404,0.5526761,2622.1,2622.0,3.0511]
[1727332503781,0.0026761,2622.1,2622.0,3.0511]
[1727332510053,0.0026761,2622.1,2621.9,3.05121]
[1727332510278,0.0026761,2622.1,2621.9,3.05115]
[1727332511627,0.0026761,2622.1,2622.0,3.0511]
[1727332512839,0.0026761,2622.1,2621.9,6.10229]
[1727332513057,0.0026761,2622.1,2622.0,3.0511]
[1727332513933,0.0026761,2622.1,2621.9,3.05116]
[1727332515124,0.0026761,2622.1,2621.8,3.05122]
[1727332516057,0.5526761,2622.1,2621.8,3.05122]
[1727332516361,0.0026761,2622.1,2621.8,3.05122]
[1727332517020,0.0026761,2622.1,2621.9,3.0512]
[1727332517966,0.0026761,2622.1,2621.8,3.05122]
[1727332518127,0.55,2621.9,2621.6,6.10298]
[1727332518321,0.55,2621.9,2621.6,3.05149]
[1727332518750,0.55,2621.9,2621.6,6.10296]
[1727332519065,0.55,2621.9,2621.6,3.05147]
[1727332520810,0.55,2621.9,2621.6,6.10297]
[1727332521026,0.55,2621.7,2621.2,3.05199]
[1727332521184,0.8049,2621.4,2621.2,3.05199]
[1727332522318,0.8049,2621.4,2621.2,6.10396]
[1727332522478,0.8049,2621.4,2621.2,3.05197]
[1727332523418,1.3549,2621.4,2621.3,3.05192]
[1727332523785,1.3549,2621.4,2621.0,4.65779971]
[1727332524004,1.3549,2621.4,2621.2,3.052]
[1727332524237,1.3549,2621.4,2621.3,0.44136409]
[1727332525544,1.3549,2621.4,2621.3,0.44135097]
[1727332526111,0.55,2621.3,2621.2,3.05198]
[1727332526311,0.55,2621.3,2621.2,3.49321618]
[1727332527414,0.55,2621.5,2621.2,3.49321618]
[1727332527611,0.55,2621.5,2621.1,3.05214]
[1727332527612,0.55,2621.5,2621.3,3.05189]
[1727332531958,0.55,2621.5,2621.4,0.10298247]
[1727332533754,0.55,2621.5,2621.1,3.05206]
[1727332533955,0.55,2621.5,2621.4,0.10218303]
[1727332534115,0.55,2621.5,2621.2,3.05195]
[1727332534324,0.55,2621.5,2621.4,0.10218303]
[1727332534522,0.55,2621.5,2621.2,3.05195]
[1727332534722,0.55,2621.5,2621.4,0.10218303]
[1727332534922,0.55,2621.5,2621.2,3.05195]
[1727332535157,0.55,2621.5,2621.1,3.05206]
[1727332535158,0.55,2621.5,2621.4,0.10218303]
[1727332535459,0.55,2621.5,2621.3,3.05191]
[1727332535632,0.55,2621.5,2621.4,0.10218303]
[1727332535830,1.3447,2621.5,2621.4,0.10218303]
[1727332536030,3.56029708,2621.5,2621.4,0.10218303]
[1727332536275,3.56029708,2621.5,2620.9,3.05231]
[1727332536276,0.7947,2621.3,2620.9,3.05231]
[1727332536424,1.44008693,2621.3,2620.9,3.05231]
[1727332536947,1.44008693,2621.3,2621.0,0.10225918]
[1727332537147,4.49202693,2621.3,2621.0,0.10225918]
[1727332537359,4.49202693,2621.3,2620.8,3.05247]
[1727332537644,1.44008693,2621.3,2621.1,0.10224014]
[1727332537842,1.44008693,2621.3,2620.9,3.05231]
[1727332538235,1.44008693,2621.3,2621.0,0.10225918]
[1727332538659,1.44008693,2621.3,2620.7,3.05254]
[1727332538863,1.44008693,2621.3,2621.1,0.10224014]
[1727332539161,1.44008693,2621.3,2621.2,0.1022211]
[1727332539676,1.44008693,2621.3,2620.9,6.1047]
[1727332540132,1.44008693,2621.3,2621.0,0.10225918]
[1727332540760,1.44008693,2621.3,2621.0,3.15449918]
[1727332540967,1.3447,2621.3,2621.0,3.15449918]
[1727332541929,1.3447,2621.3,2621.0,0.10225918]
[1727332542141,1.3447,2621.3,2621.0,3.15440918]
[1727332542344,1.3447,2621.3,2621.0,0.88350007]
[1727332543283,1.3781,2621.4,2621.1,3.05213]
[1727332543865,1.3781,2621.4,2621.2,0.1022211]
[1727332545066,1.3781,2621.4,2621.0,3.0522]
[1727332545273,1.3781,2621.4,2621.3,0.10241156]
[1727332545467,1.3781,2621.4,2621.0,3.0522]
[1727332545632,1.3781,2621.4,2621.3,0.10241156]
[1727332545833,1.3781,2621.4,2621.0,3.0522]
[1727332546045,1.3781,2621.4,2621.3,0.10241156]
[1727332546229,1.3781,2621.4,2621.0,3.05226]
[1727332546578,6.03030834,2621.4,2621.1,0.10244964]
[1727332546873,7.24333456,2621.4,2620.9,3.05232]
[1727332547030,7.24333456,2621.4,2621.2,0.1024306]
[1727332547365,7.24324456,2621.4,2621.3,0.10241156]
[1727332547573,6.1256026,2621.4,2621.3,0.10241156]
[1727332547966,6.1256026,2621.4,2620.8,3.05243]
[1727332548165,6.1256026,2621.4,2621.3,0.09904725]
[1727332548370,0.7663,2621.3,2620.7,3.05253]
[1727332548588,0.55,2621.2,2620.9,3.05237]
[1727332548929,0.55,2621.2,2621.0,0.09910436]
[1727332549764,0.55,2621.2,2620.9,3.05237]
[1727332550155,0.55,2621.2,2621.0,3.05218]
[1727332550670,0.55,2621.2,2621.1,0.09908532]
[1727332550834,0.55,2621.4,2621.1,3.15123532]
[1727332551472,0.55,2621.4,2621.1,3.15117532]
[1727332554836,0.55,2621.4,2621.1,6.20325532]
[1727332555078,0.55,2621.4,2621.1,3.15116532]
[1727332555401,0.55,2621.4,2621.1,6.20325532]
[1727332555735,0.55,2621.4,2621.1,3.15116532]
[1727332557251,0.55,2621.4,2621.1,7.12805382]
[1727332557642,0.55,2621.4,2621.1,4.07597382]
[1727332558246,2.14892554,2621.5,2621.1,4.07597382]
[1727332558475,2.14892554,2621.5,2621.1,3.15116532]
[1727332559345,0.55,2621.3,2621.1,3.15116532]
[1727332559545,0.55,2621.3,2621.1,0.09908532]
[1727332559747,0.55,2621.3,2620.9,7.54362]
[1727332559748,0.55,2621.3,2621.0,3.05219]
[1727332559957,0.55,2621.3,2621.2,0.09918266]
[1727332560160,0.55,2621.3,2621.0,3.05219]
[1727332560474,0.55,2621.3,2621.2,0.09918266]
[1727332560649,0.55,2621.3,2621.1,0.0992017]
[1727332560848,0.55,2621.3,2621.2,0.09918266]
[1727332561245,0.55,2621.4,2621.2,0.8235]
[1727332561460,0.55,2621.4,2621.2,0.92268266]
[1727332563116,2.14892554,2621.4,2621.2,0.09918266]
[1727332563402,2.14892554,2621.4,2621.0,6.9362]
[1727332563592,2.14892554,2621.4,2621.3,0.09916363]
[1727332563777,2.14892554,2621.4,2621.0,7.85143097]
[1727332563981,2.14892554,2621.4,2621.3,0.09916363]
[1727332564165,2.14892554,2621.4,2621.1,3.05214]
[1727332564364,2.14892554,2621.4,2621.3,0.09916363]
[1727332564922,2.14892554,2621.4,2621.1,0.94569807]
[1727332565061,2.14892554,2621.4,2621.3,0.09916363]
[1727332565453,2.15300239,2621.4,2621.0,3.88398]
[1727332565705,1.60308129,2621.3,2621.0,6.93619]
[1727332565879,1.60308129,2621.3,2621.1,0.0992017]
[1727332567562,2.15308129,2621.3,2621.2,3.05203]
[1727332567962,2.15308129,2621.3,2621.2,0.09918266]
[1727332568406,1.60308129,2621.4,2621.2,0.09918266]
[1727332568602,1.60308129,2621.4,2621.3,3.83432]
[1727332568810,2.15342705,2621.6,2621.5,3.05168]
[1727332569109,2.15342705,2621.6,2621.5,4.75635541]
[1727332569110,0.55,2621.6,2621.5,4.75635541]
[1727332569319,0.55,2621.6,2621.5,5.70692118]
[1727332569786,0.55,2621.6,2621.5,1.04962147]
[1727332570434,1.60342705,2621.7,2621.5,4.10130147]
[1727332570598,1.60342705,2621.8,2621.7,3.05145]
[1727332570798,1.60342705,2621.9,2621.7,4.00939712]
[1727332571131,1.60342705,2622.0,2621.8,3.05133]
[1727332571422,1.60342705,2622.0,2621.7,1.05686389]
[1727332571635,2.00647981,2622.1,2621.9,0.09872355]
[1727332571795,2.15217281,2622.0,2621.8,0.09874258]
[1727332571999,2.15217281,2622.0,2621.6,3.05155]
[1727332572223,2.15217281,2622.0,2621.7,0.85298697]
[1727332573119,1.60217281,2621.9,2621.7,0.85298697]
[1727332573517,2.15217281,2622.0,2621.7,0.85298697]
[1727332573823,2.15217281,2622.0,2621.7,3.90442697]
[1727332575534,0.55,2622.0,2621.7,3.90442697]
[1727332576532,0.55,2622.0,2621.8,0.3904427]
[1727332576741,0.8018,2621.9,2621.8,0.3904427]
[1727332577102,0.55,2622.0,2621.8,0.3904427]
[1727332578226,0.55,2622.0,2621.7,3.05144]
[1727332579238,0.55,2622.0,2621.7,6.10282]
[1727332579413,0.55,2622.0,2621.7,3.05138]
[1727332579818,0.55,2622.0,2621.8,3.05127]
[1727332580512,0.5526761,2622.1,2621.8,3.05127]
[1727332580668,0.5526761,2622.1,2621.7,6.10276]
[1727332580978,0.5526761,2622.1,2621.7,6.65057997]
[1727332581134,0.5526761,2622.1,2621.7,3.59918997]
[1727332581135,2.15484891,2622.1,2621.7,3.59918997]
[1727332581338,2.15484891,2622.1,2621.8,3.05133]
[1727332581549,2.15484891,2622.1,2621.7,3.59918997]
[1727332581761,0.5526761,2622.1,2621.7,3.59918997]
[1727332581964,0.5526761,2622.1,2621.7,6.65056997]
[1727332582562,0.5526761,2622.1,2621.8,3.14928341]
[1727332583224,0.5526761,2622.1,2621.8,3.83175868]
[1727332583863,0.5526761,2622.1,2621.8,0.78048868]
[1727332584365,0.5526761,2622.1,2621.8,0.09801341]
[1727332584831,0.5526761,2622.1,2621.7,3.05138]
[1727332585037,5.20583891,2622.1,2621.9,0.09799438]
[1727332585238,5.20583891,2622.1,2621.7,3.05138]
[1727332585239,5.20583891,2622.1,2621.8,0.09801341]
[1727332585548,5.20583891,2622.1,2621.9,0.09799438]
[1727332585948,5.20583891,2622.1,2621.7,3.05138]
[1727332586122,5.20583891,2622.1,2622.0,0.09797536]
[1727332586323,5.20583891,2622.1,2621.5,3.87272]
[1727332586637,0.55,2621.7,2621.6,0.09805147]
[1727332586829,1.3027,2621.7,2621.6,0.09805147]
[1727332587171,1.3027,2621.7,2621.6,0.09806698]
[1727332587366,1.3027,2621.7,2621.4,3.0518]
[1727332587656,1.3027,2621.7,2621.6,0.09806698]
[1727332587822,1.3027,2621.7,2621.5,0.09808602]
[1727332588019,1.3027,2621.7,2621.6,0.09806698]
[1727332588436,1.3027,2621.7,2621.3,3.05185]
[1727332588635,1.3027,2621.7,2621.6,0.09809025]
[1727332588969,4.35421,2621.7,2621.6,0.09809025]
[1727332589126,4.35421,2621.7,2621.2,3.0]
[1727332589330,1.3027,2621.7,2621.3,3.15005735]
[1727332589530,1.3027,2621.7,2621.3,0.09814735]
[1727332589531,4.35417,2621.7,2621.3,0.09814735]
[1727332589856,1.3027,2621.7,2621.3,3.0519]
[1727332590060,1.3027,2621.7,2621.4,0.09829118]
[1727332591171,1.3027,2621.7,2621.4,3.15008118]
[1727332591834,1.3027,2621.7,2621.4,0.09829118]
[1727332592173,1.3027,2621.7,2621.2,6.05197]
[1727332592324,1.3027,2621.7,2621.5,0.09827215]
[1727332592530,1.3027,2621.7,2621.2,6.05197]
[1727332592851,1.3027,2621.7,2621.4,3.05179]
[1727332593360,1.3027,2621.7,2621.5,0.09827215]
[1727332594135,1.3027,2621.7,2621.5,3.14995215]
[1727332596553,0.55,2621.8,2621.5,3.14995215]
[1727332598084,0.55,2621.8,2621.6,3.05148]
[1727332598252,1.60217281,2622.0,2621.8,3.05133]
[1727332598453,1.60217281,2622.0,2621.9,3.05114]
[1727332598648,1.60484891,2622.1,2622.0,3.0511]
[1727332598885,1.60484891,2622.1,2621.9,0.09819603]
[1727332599092,1.60484891,2622.1,2622.0,0.098177]
[1727332599457,1.60484891,2622.1,2621.8,6.10251]
[1727332599653,2.15484891,2622.1,2622.0,0.098177]
[1727332599866,0.55,2622.0,2621.9,0.09819603]
[1727332600189,0.55,2622.0,2621.8,3.05125]
[1727332601470,0.55,2622.0,2621.7,3.05138]
[1727332601670,2.15217281,2622.0,2621.8,3.05133]
[1727332601961,0.55,2622.0,2621.8,3.05133]
[1727332602495,2.15217281,2622.0,2621.8,3.05133]
[1727332605359,2.15217281,2622.0,2621.7,3.05141]
[1727332605757,2.15217281,2622.0,2621.8,6.10252]
[1727332605952,0.55,2622.0,2621.8,3.05125]
[1727332606158,2.15217281,2622.0,2621.8,3.356375]
[1727332606364,0.0026761,2622.1,2621.9,0.7857]
[1727332606654,0.0026761,2622.1,2621.9,3.05121]
[1727332606908,0.0026761,2622.1,2622.0,3.0511]
[1727332609097,0.0026761,2622.1,2622.0,4.73412277]
[1727332609269,0.0026761,2622.1,2622.0,0.44084413]
[1727332609467,2.94084891,2622.1,2622.0,0.44084413]
[1727332610875,1.3386761,2622.1,2622.0,0.44084413]
[1727332611070,2.94084891,2622.1,2622.0,0.44084413]
[1727332611906,2.94084891,2622.1,2622.0,3.49194413]
[1727332611907,0.0026761,2622.1,2622.0,3.49194413]
[1727332612078,0.0026761,2622.1,2622.0,4.38683551]
[1727332612805,0.0026761,2622.1,2622.0,4.48118068]
[1727332612990,0.0026761,2622.1,2622.0,0.5351893]
[1727332613199,2.15484891,2622.1,2622.0,0.5351893]
[1727332615002,2.15484891,2622.1,2622.0,0.09434517]
[1727332615221,2.15484891,2622.1,2622.0,3.14544517]
[1727332615680,2.15484891,2622.1,2622.0,0.09434517]
[1727332616720,0.5526761,2622.1,2622.0,0.09434517]
[1727332616926,2.15484891,2622.1,2622.0,0.09434517]
[1727332617489,0.5526761,2622.1,2622.0,0.09434517]
[1727332617714,2.15484891,2622.1,2622.0,0.09434517]
[1727332618177,0.55,2622.0,2621.7,3.81238]
[1727332618379,0.55,2622.0,2621.8,3.05133]
[1727332618915,0.55,2622.0,2621.7,4.38574949]
[1727332619096,2.15229142,2622.0,2621.7,4.38574949]
[1727332619410,2.15229142,2622.0,2621.8,3.05132]
[1727332620390,0.55,2622.0,2621.8,3.05132]
[1727332621568,0.55,2622.0,2621.9,3.05122]
[1727332621795,0.55,2622.0,2621.8,3.05133]
[1727332621999,0.55,2622.0,2621.8,6.1026]
[1727332622417,0.55,2622.0,2621.9,3.05122]
[1727332622777,0.55,2622.0,2621.8,3.95552192]
[1727332623214,0.55,2622.0,2621.9,3.05122]
[1727332623375,0.55,2622.0,2621.8,3.05127]
[1727332623576,0.55,2622.0,2621.8,3.05126]
[1727332624078,0.55,2622.0,2621.8,6.788914]
[1727332624300,0.55,2622.0,2621.8,6.10254]
[1727332624499,0.55,2622.0,2621.8,3.05126]
[1727332624704,0.55,2622.0,2621.9,3.05122]
[1727332625512,0.5526761,2622.1,2621.8,3.05133]
[1727332625811,2.15496752,2622.1,2621.9,3.05121]
[1727332626575,0.5526761,2622.1,2621.9,3.05122]
[1727332627625,0.5526761,2622.1,2622.0,0.09119378]
[1727332628529,1.76351954,2622.1,2621.6,3.05147]
[1727332628812,0.55,2621.9,2621.6,3.05147]
[1727332629000,0.55,2621.9,2621.7,3.14258434]
[1727332629211,2.15203574,2622.0,2621.7,3.14258434]
[1727332631879,5.69844361,2622.0,2621.7,0.09120434]
[1727332632079,2.90343574,2621.8,2621.7,0.09120434]
[1727332632419,1.3014,2621.8,2621.7,0.09128964]
[1727332632620,1.3014,2621.8,2621.5,3.05167]
[1727332632918,2.90355025,2621.8,2621.5,3.05167]
[1727332633162,2.90355025,2621.8,2621.6,0.09130867]
[1727332634407,2.90355025,2621.8,2621.4,6.10346]
[1727332634711,2.90355025,2621.8,2621.7,0.0914835]
[1727332634913,2.90361315,2621.8,2621.5,3.05167]
[1727332635078,0.55,2621.6,2621.5,3.05167]
[1727332636092,0.55,2621.7,2621.5,3.05167]
[1727332636723,0.55,2621.7,2621.4,3.05173]
[1727332636953,0.55,2621.7,2621.6,3.05157]
[1727332637165,0.55,2621.7,2621.2,5.48607971]
[1727332637312,1.60222177,2621.6,2621.2,3.88047]
[1727332637656,0.55,2621.5,2621.2,3.88047]
[1727332637812,0.55,2621.5,2621.2,6.93244]
[1727332638012,0.55,2621.5,2621.3,3.05188]
[1727332638536,0.55,2621.5,2621.2,3.88047]
[1727332638739,0.55,2621.5,2621.4,3.0518]
[1727332639654,0.55,2621.6,2621.4,3.0518]
[1727332640146,0.55,2621.6,2621.4,3.05172]
[1727332642537,0.55,2621.6,2621.5,0.09168442]
[1727332644148,0.55,2621.7,2621.5,0.09168442]
[1727332644757,2.15222177,2621.7,2621.5,0.09168442]
[1727332645062,0.55,2621.7,2621.5,0.09168442]
[1727332646044,0.55,2621.7,2621.5,3.14334442]
[1727332646253,0.55,2621.7,2621.5,0.09168442]
[1727332646557,2.15222177,2621.7,2621.5,0.09168442]
[1727332646918,0.55,2621.7,2621.5,3.14331442]
[1727332647124,0.55,2621.7,2621.6,3.05157]
[1727332647570,0.55,2621.7,2621.6,3.14298079]
[1727332647864,0.55,2621.8,2621.6,3.14298079]
[1727332648031,2.15222177,2621.8,2621.6,3.14298079]
[1727332648231,0.55,2621.8,2621.6,3.14298079]
[1727332648439,0.55,2621.8,2621.6,3.14291079]
[1727332648440,2.15222177,2621.8,2621.6,3.14291079]
[1727332650074,2.15222177,2621.8,2621.6,0.09141079]
[1727332650930,2.15222177,2621.8,2621.6,3.14298079]
[1727332651533,2.15222177,2621.8,2621.6,0.09141079]
[1727332652268,2.15222177,2621.8,2621.6,3.14293079]
[1727332653838,2.15222177,2621.8,2621.6,0.09141079]
[1727332654043,2.15222177,2621.8,2621.6,3.05149]
[1727332654273,0.55,2621.8,2621.7,0.08832924]
[1727332654446,2.15222177,2621.8,2621.7,0.08832924]
[1727332656333,2.15222177,2621.8,2621.5,3.86678]
[1727332656538,2.15222177,2621.8,2621.7,0.08827498]
[1727332656738,2.15222177,2621.8,2621.6,0.08829401]
[1727332656938,2.15222177,2621.8,2621.7,0.08827498]
[1727332657271,2.15222177,2621.8,2621.5,3.86678]
[1727332657438,2.15222177,2621.8,2621.7,0.08827498]
[1727332657640,2.15222177,2621.8,2621.5,3.86678]
[1727332657840,2.15222177,2621.8,2621.7,0.08827498]
[1727332658138,2.15222177,2621.8,2621.5,3.86678]
[1727332658338,2.15222177,2621.8,2621.7,0.08827498]
[1727332658582,2.15222177,2621.8,2621.6,0.08829401]
[1727332658870,2.15222177,2621.8,2621.7,0.08827498]
[1727332659066,2.15222177,2621.8,2621.5,3.86678]
[1727332659275,2.15222177,2621.8,2621.7,0.08827498]
[1727332659571,2.15222177,2621.8,2621.6,0.08829401]
[1727332659764,2.15222177,2621.8,2621.7,0.08827498]
[1727332660074,2.15222177,2621.8,2621.5,3.86678]
[1727332660246,2.15222177,2621.8,2621.7,0.08827498]
[1727332660571,2.15222177,2621.8,2621.5,3.86678]
[1727332660774,2.15222177,2621.8,2621.7,0.08827498]
[1727332661287,2.15222177,2621.8,2621.5,3.86678]
[1727332661440,2.15222177,2621.8,2621.7,0.08827498]
[1727332662048,2.15222177,2621.8,2621.5,3.86678]
[1727332662349,2.15222177,2621.8,2621.7,0.08827498]
[1727332662552,2.15222177,2621.8,2621.6,0.08829401]
[1727332662740,2.15222177,2621.8,2621.7,0.08827498]
[1727332663201,0.55,2621.8,2621.5,3.86678]
[1727332663488,0.55,2621.8,2621.6,0.08829401]
[1727332663791,2.15265024,2621.7,2621.6,0.08829401]
[1727332669553,0.55,2621.6,2621.4,3.05178]
[1727332670063,0.55,2621.6,2621.4,0.84721397]
[1727332670251,1.60265024,2621.8,2621.6,3.88007]
[1727332670603,1.60265024,2621.9,2621.7,3.05145]
[1727332671252,1.60265024,2621.9,2621.8,3.05133]
[1727332671484,1.60265024,2622.0,2621.8,3.75208501]
[1727332671670,0.55,2621.9,2621.8,3.75208501]
[1727332671876,0.55,2621.9,2621.8,0.70075501]
[1727332672689,0.55,2621.9,2621.8,0.78890242]
[1727332673388,0.55,2621.9,2621.8,0.08814741]
[1727332673691,0.55,2621.9,2621.7,3.05139]
[1727332673858,0.55,2621.9,2621.8,0.08814741]
[1727332674059,2.15265024,2621.9,2621.7,3.05139]
[1727332674274,0.55,2621.9,2621.8,0.08814741]
[1727332674700,0.55,2621.9,2621.7,3.05139]
[1727332675015,0.55,2621.9,2621.8,0.08814741]
[1727332675316,0.55,2621.9,2621.7,3.05139]
[1727332675480,0.55,2621.9,2621.8,0.08814741]
[1727332675682,0.55,2621.9,2621.8,3.05133]
[1727332675889,0.55,2621.9,2621.8,0.08814741]
[1727332676174,0.55,2621.9,2621.8,3.05133]
[1727332676399,0.55,2621.9,2621.8,3.13947741]
[1727332680626,0.55,2621.9,2621.8,0.08814741]
[1727332680782,2.15265024,2622.0,2621.8,0.08814741]
[1727332680985,2.15265024,2622.0,2621.7,3.85346]
[1727332681319,2.15265024,2622.0,2621.9,3.05122]
[1727332681482,1.60532634,2622.1,2622.0,3.8552]
[1727332681685,0.0026761,2622.1,2622.0,5.46081971]
[1727332681882,0.0026761,2622.1,2622.0,5.54866543]
[1727332682115,0.0026761,2622.1,2622.0,6.78371425]
[1727332682319,0.0026761,2622.1,2622.0,6.85997688]
[1727332682819,0.0026761,2622.1,2622.0,7.74352052]
[1727332683024,0.0026761,2622.1,2622.0,6.78371425]
[1727332684396,0.0026761,2622.1,2622.0,6.85997687]
[1727332691614,0.0026761,2622.1,2622.0,9.85997687]
[1727332691957,0.0026761,2622.1,2622.0,9.78371425]
[1727332701234,0.0026761,2622.1,2622.0,8.17809454]
[1727332701552,0.0026761,2622.1,2622.0,7.37399454]
[1727332702811,0.0026761,2622.1,2622.0,8.2259609]
[1727332703010,0.0026761,2622.1,2622.0,8.14969454]
[1727332710029,0.0026761,2622.1,2622.0,7.37399454]
[1727332710232,0.0026761,2622.1,2622.0,6.13894572]
[1727332711065,1.3641761,2622.1,2622.0,3.13894572]
[1727332711723,0.0026761,2622.1,2622.0,4.74456543]
[1727332712201,0.0026761,2622.1,2622.0,5.59970297]
[1727332714518,0.0026761,2622.1,2622.0,5.6759703]
[1727332714733,0.0026761,2622.1,2622.0,5.59970297]
[1727332717422,0.0026761,2622.1,2622.0,3.13894572]
[1727332717648,0.0026761,2622.1,2622.0,0.08784572]
[1727332717649,0.7803761,2622.1,2622.0,0.08784572]
[1727332717957,1.3303761,2622.1,2622.0,0.08784572]
[1727332718820,1.3303761,2622.1,2622.0,3.13894572]
[1727332719021,1.3303761,2622.1,2622.0,3.0511]
[1727332719249,1.3303761,2622.1,2622.0,3.13522911]
[1727332720876,1.3303761,2622.1,2622.0,0.08412911]
[1727332723535,1.3303761,2622.1,2622.0,3.13522911]
[1727332731188,0.0026761,2622.1,2622.0,3.13522911]
[1727332733566,0.0026761,2622.1,2622.0,4.74084882]
[1727332737317,0.0026761,2622.1,2622.0,3.13522911]
[1727332739079,0.0026761,2622.1,2622.0,3.57646271]
[1727332739669,0.0026761,2622.1,2622.0,4.0177037]